Body,Body Name,Service Label,Service Code,Expenditure Category,Expenditure Code,Narrative,Date ,Transaction Number,Amount,Capital/Revenue/Precept,Supplier Name,Supplier ID
32UB,Boston Borough Council,Street Cleansing Service,3235,Fly Tipping Project,3325,NK63 JJY - MAY 2021 HIRE,23/12/2021,226724,400,Revenue,Phil Haines Coaches Ltd,351
32UB,Boston Borough Council,Building Mtc-Public Buildings,4402,Materials,3006,MONTHLY VISITS AUGUST 21,03/12/2021,229435,559.46,Revenue,Integrated Water Services Ltd,11294
32UB,Boston Borough Council,Building Mtc-Public Buildings,4402,Materials,3006,MONTHLY VISITS SEPT 21,03/12/2021,229942,541.27,Revenue,Integrated Water Services Ltd,11294
32UB,Boston Borough Council,Photocopiers,2503,Equipment Purchase,3001,INTERNAL RELOCATION OF 2 XCOPIERS,03/12/2021,230245,270,Revenue,Capita Software Services Limited,121
32UB,Boston Borough Council,"Arts, Heritage & Tourism",3407,Publicity,3513,ADVERT OCT 21 AREA FEATURE,10/12/2021,230258,550,Revenue,Business Link Magazine Group,1581
32UB,Boston Borough Council,Vehicle Holding Account,2206,Miscellaneous,3905,STEAM CLEANING VEHICLES AUGUST 2021,03/12/2021,230339,1833.33,Revenue,Peter Smith Commercials Ltd,11923
32UB,Boston Borough Council,Vehicle Holding Account,2206,Miscellaneous,3905,STEAM CLEANING VEHICLES SEPTEMBER 2021,10/12/2021,230340,2345,Revenue,Peter Smith Commercials Ltd,11923
32UB,Boston Borough Council,Building Mtc-Public Buildings,4402,Materials,3006,GMLC - THERMOSTATIC SHOWER BAR,23/12/2021,230436,730.62,Revenue,Glen Farrow Uk Ltd,12204
32UB,Boston Borough Council,Housing Grants & Enforcement,3228,Professional Services,3301,DASH SUBSCRIPTION 2021-22,23/12/2021,230439,3000,Revenue,Derby City Council,2414
32UB,Boston Borough Council,Dog Collection,3219,Professional Services,3301,OCT 21 STRAY DOG COLLECTION SERVICE,03/12/2021,230477,1120.83,Revenue,Pestinator Uk Ltd,13043
32UB,Boston Borough Council,Building Mtc-Public Buildings,4402,Materials,3006,GMLC - PLUMBING WORKS,03/12/2021,230489,6228,Revenue,Nerg,13707
32UB,Boston Borough Council,Building Mtc-Public Buildings,4402,Materials,3006,QUARTERLY VISITS OCT 21,03/12/2021,230498,577.94,Revenue,Integrated Water Services Ltd,11294
32UB,Boston Borough Council,Leisure Pool Services,3434,Water Rates,2050,27.09.21-26.10.21 ROWLEY ROAD,03/12/2021,230577,818.62,Revenue,Wave,13339
32UB,Boston Borough Council,Community Testing Centre,3516,Overtime Payments,1022,OFFICERS W/E 23.10.21,03/12/2021,230616,3794.76,Revenue,Aligra Personnel Limited,16541
32UB,Boston Borough Council,Development Management,3306,Professional Services,3301,HANDLING OF APP- BOSTON WEST GOLF COURSE,03/12/2021,230664,600,Revenue,Jennifer Wallis Planning Ltd,14577
32UB,Boston Borough Council,Recycling,3238,Printing And Stationery,3201,"10,000 BLUE BIN TAGS",03/12/2021,230666,980.6,Revenue,Daymark Labels,14449
32UB,Boston Borough Council,Recycling,3238,Printing And Stationery,3201,"10,000 PURPLE BINS TAGS",03/12/2021,230666,980.6,Revenue,Daymark Labels,14449
32UB,Boston Borough Council,Building Mtc-Public Buildings,4402,Materials,3006,ST JOHNS LIGHTING ISSUES 10.11.21,03/12/2021,230669,571.75,Revenue,D & M Barthorpe,210
32UB,Boston Borough Council,Vehicle Holding Account,2206,Tyres,2208,TYRE MAINTENANCE CONTRACT NOVEMBER 2021,03/12/2021,230674,2674.71,Revenue,B A Bush & Son Ltd,12196
32UB,Boston Borough Council,Vehicle Holding Account,2206,Chris Sellars Payg,3045,MARKETS TRAILER NO. 7 FLEET NO. VF15008,03/12/2021,230676,1528.2,Revenue,Chris Sellars Groundcare Ltd,6627
32UB,Boston Borough Council,Development Management,3306,Agency Staff,1032,TOWN PLANNING CONSULTANCY OCT 21,03/12/2021,230683,3762,Revenue,Gd Planning,16774
32UB,Boston Borough Council,Grounds Maintenance,4401,Insurance Administration,5004,SUPPLY/FIT DOUBLE GLAZED UNIT,23/12/2021,230685,281.72,Revenue,Beesons Of Boston Ltd,295
32UB,Boston Borough Council,Central Training & Recruitment,2001,Training Courses,1108,BTEC LEVEL 3 CERTIFICATE FOR ANIMAL INSPECTOR,03/12/2021,230687,1032,Revenue,The Institute Of Licensing (Events) Ltd,9840
32UB,Boston Borough Council,Vehicle Holding Account,2206,Fuel Transport,2201,"2,500 LITRES ADBLUE",03/12/2021,230706,725,Revenue,Pace Fuelcare,4927
32UB,Boston Borough Council,"Arts, Heritage & Tourism",3407,Project Costs,3935,CULTURAL STRATEGY CONSULTANCY,23/12/2021,230710,10000,Revenue,Magna Vitae Leisure Trust,13539
32UB,Boston Borough Council,Insurances,2501,Insurance,5001,2021 INSURANCE MGT FEE 5295866,03/12/2021,230712,3955.49,Revenue,The Risk Factor Ltd,10707
32UB,Boston Borough Council,Psica,6514,Payments To Contractors,8002,PREP FOR PRESENTATION 02.12.21,23/12/2021,230726,475,Capital,Heritage Lighting Matters Ltd,17183
32UB,Boston Borough Council,Leisure Pool Services,3434,Plant Maintenance,2012,2 BOSS EXPANSION VESSELS & RE-PRESSURISE,03/12/2021,230731,2951.64,Revenue,Nerg,13707
32UB,Boston Borough Council,Local Restriction Support,1015,Arg Scheme,4016,27.09.21-MARCH 2023 RESILIENCE PLANS,03/12/2021,230739,100000,Revenue,Visit Lincoln Cic,13802
32UB,Boston Borough Council,Office Cleaning,3203,Agency Staff,1032,CLEANERS X 3,03/12/2021,230751,863.28,Revenue,Workforce (Boston) Limited,11042
32UB,Boston Borough Council,Building Mtc-Public Buildings,4402,Materials,3006,01.10.21 RESTONE SITE REPROGRAM METERS,10/12/2021,230828,341,Revenue,D & M Barthorpe,210
32UB,Boston Borough Council,Building Mtc-Public Buildings,4402,Materials,3006,16.11.21 CHRISTMAS DECORATION SUPPLY,10/12/2021,230829,430.55,Revenue,D & M Barthorpe,210
32UB,Boston Borough Council,Community Champions: La Fund,1019,Training Courses,1108,MEDIA AWARENESS TRAINING FOR CLLRS & OFFICERS,10/12/2021,230834,1462.5,Revenue,Ultravox Training Ltd,16208
32UB,Boston Borough Council,Leisure Pool Services,3434,Biomass Fuel,2093,WOODCHIP DELIVERIES FOR GMLC,10/12/2021,230836,749.95,Revenue,Sdl Biomass Ltd,15677
32UB,Boston Borough Council,Princess Royal Sports Arena,3452,Biomass Fuel,2093,WOODCHIP DELIVERIES FOR PRSA,10/12/2021,230836,900.4,Revenue,Sdl Biomass Ltd,15677
32UB,Boston Borough Council,Building Mtc-Public Buildings,4402,Materials,3006,SUPPLY/INSTALL 6M COLUMN WITH LANTERN,03/12/2021,230838,670,Revenue,Eon Uk Energy Services,8014
32UB,Boston Borough Council,Office Cleaning,3203,Agency Staff,1032,CLEANERS X 2,03/12/2021,230842,647.46,Revenue,Workforce (Boston) Limited,11042
32UB,Boston Borough Council,Leisure Pool Services,3434,Resale Pool,3034,AWARDS,10/12/2021,230844,758.3,Revenue,Swim England Trading Limited,950
32UB,Boston Borough Council,Refuse Collection,3234,Agency Staff,1032,SUPPLY OF TEMPORARY STAFF W/E 21.11.21,03/12/2021,230845,5834.35,Revenue,Comensura Ltd,9671
32UB,Boston Borough Council,Grounds Maintenance,4401,Agency Staff,1032,SUPPLY OF TEMPORARY STAFF W/E 21.11.21,03/12/2021,230845,911.42,Revenue,Comensura Ltd,9671
32UB,Boston Borough Council,Property Services,1403,Professional Services,3301,"MARKET VALUATION  W/C KIRTON, STATION RD",03/12/2021,230846,875,Revenue,Kier Business Services Ltd,13077
32UB,Boston Borough Council,Property Services,1403,Professional Services,3301,RENTAL VALUATIONS,03/12/2021,230847,3975,Revenue,Kier Business Services Ltd,13077
32UB,Boston Borough Council,Leisure Pool Services,3434,Cash Collection & Counting,4621,CASH COLLECTIONS,17/12/2021,230850,418.4,Revenue,Kings Armoured Security Services Ltd,10472
32UB,Boston Borough Council,Parking,3449,Cash Collection & Counting,4621,CASH COLLECTIONS,17/12/2021,230850,939.44,Revenue,Kings Armoured Security Services Ltd,10472
32UB,Boston Borough Council,High Street Fund,3247,Data Protection Notification,3428,133HS FLYING REINDEER FOR SLEIGH,03/12/2021,230852,681,Revenue,Mk Illumination Uk Limited,17103
32UB,Boston Borough Council,High Street Fund,3247,Disaster Recovery,3429,UK1097HS  SLEIGH WHITE LED AND WARM WHITE LED,03/12/2021,230852,850,Revenue,Mk Illumination Uk Limited,17103
32UB,Boston Borough Council,Building Mtc-Public Buildings,4402,Materials,3006,6 MONTH DOSING SYSTEM,10/12/2021,230857,1132.36,Revenue,C.S.S. Pools And Leisure Ltd,12394
32UB,Boston Borough Council,Central Training & Recruitment,2001,Training Courses,1108,PRACTICAL,10/12/2021,230858,327,Revenue,Institute Of Swimming,12482
32UB,Boston Borough Council,Registration Of Electors,3109,Printing And Stationery,3201,ELECTION MAILERS,17/12/2021,230859,357,Revenue,Hound Envelopes Limited,8363
32UB,Boston Borough Council,Property Services,1403,Professional Services,3301,MARKET VALUATION JAMES STREET OPEN SPACE,03/12/2021,230860,875,Revenue,Kier Business Services Ltd,13077
32UB,Boston Borough Council,Bereavement,2401,Chapel Media Fees,3891,ENGINEER CALL-OUT TO INVESTIGATE AND RESOLVE LOSS OF TRIBUTE SIGNAL TO CHAPEL DISPLAY SCREEN,10/12/2021,230861,435.23,Revenue,The Yaboo Co Ltd (Wesley Media),6678
32UB,Boston Borough Council,Community Safety,3205,P'Ship Pay & Conts To Schemes,3601,STOP HATE THIRD PARTY REPORTING,03/12/2021,230863,1000,Revenue,Police & Crime Commissioner For Lincolnshire,1876
32UB,Boston Borough Council,Leisure Pool Services,3434,Resale Pool,3034,"REF: RTPQ24019, TROLLEY COINS",03/12/2021,230870,380,Revenue,Rt Promotions,12807
32UB,Boston Borough Council,Community Champions: La Fund,1019,Language Line,3908,TRANSLATION COSTS FOR PROJECT,03/12/2021,230873,950,Revenue,Pab Languages Centre,11529
32UB,Boston Borough Council,Development Management,3306,Subscriptions,3600,PLANNING JUNGLE - SUBSCRIPTION,17/12/2021,230876,300,Revenue,Planning Jungle Limited,14013
32UB,Boston Borough Council,Building Mtc-Public Buildings,4402,Materials,3006,GMLC 23.09.20-22.09.21 SERVICE CONTRACT,10/12/2021,230904,2031.23,Revenue,Sterling Hydrotech Ltd,894
32UB,Boston Borough Council,Photocopiers,2503,Paper Purchases,3017,CANON A4 YELLOW LABEL COPY COPIER/LASER PAPER,03/12/2021,230905,713.6,Revenue,Canon (Uk) Ltd,5266
32UB,Boston Borough Council,Vehicle Holding Account,2206,Materials,3006,SCA023470 75 X SIDE BRUSHES (GUTTER) FOR GK20,17/12/2021,230906,2297.55,Revenue,Scarab Sweepers Ltd,1405
32UB,Boston Borough Council,Community Champions: La Fund,1019,Language Line,3908,TRANSLATION COSTS FOR PROJECT,03/12/2021,230907,900,Revenue,Pab Languages Centre,11529
32UB,Boston Borough Council,Community Champions: La Fund,1019,Printing And Stationery,3201,ADVERTISMENT ON ELECTRONIC NOTICE BOARD,10/12/2021,230909,500,Revenue,Radiant Media Limited,16340
32UB,Boston Borough Council,Computer Costs,1503,Hardware Maintenance,3410,"CATALYST 2960-X 48 GIGE POE 740W, 2 X 10G SFP",17/12/2021,230913,1360,Revenue,One Source It Ltd,13746
32UB,Boston Borough Council,Computer Costs,1503,Hardware Maintenance,3410,CISCO CATALYST 3850 48 PORT POE IP BASE,17/12/2021,230913,3390,Revenue,One Source It Ltd,13746
32UB,Boston Borough Council,Computer Costs,1503,Software Maintenance,3408,MODERN GOV MIGRATION,10/12/2021,230914,3870,Revenue,Civica Uk Ltd,124
32UB,Boston Borough Council,Municipal Buildings,2404,Water Rates,2050,10.08.21-09.11.21 MUNICIPAL BUILDINGS,03/12/2021,230916,406.46,Revenue,Wave,13339
32UB,Boston Borough Council,Building Mtc-Public Buildings,4402,Materials,3006,D & A SERVICE CONTRACT,17/12/2021,230917,501.69,Revenue,Chubb Fire & Security Limited,447
32UB,Boston Borough Council,Elections,3103,Postages,3405,POST CHAGRES 17.10.21-04.11.21,03/12/2021,230918,413.32,Revenue,Royal Mail,86
32UB,Boston Borough Council,Leisure Pool Services,3434,Equipment Purchase,3001,EASY ACCESS LADDER,03/12/2021,230921,2569.9,Revenue,J P Lennard Limited,56
32UB,Boston Borough Council,Finance,1502,Professional Services,3301,PSPS CONTRACT PRICE - NOV 21,03/12/2021,230976,238097.42,Revenue,Public Sector Partnership Services Ltd,16086
32UB,Boston Borough Council,Housing Advice & Homelessness,3241,Project Costs,3935,ROUGH SLEEPER INITIATIVE APR-JUN 21,17/12/2021,230977,42000,Revenue,People Potential Possibilities T/A P3,12387
32UB,Boston Borough Council,Registration Of Electors,3109,Printing And Stationery,3201,A4 SINGLE SIDED LETTERS,10/12/2021,230978,881.76,Revenue,Civica Election Services Ltd,6513
32UB,Boston Borough Council,Community Champions: La Fund,1019,Training Courses,1108,MHFA REFRESHER TRAINING,10/12/2021,230980,622,Revenue,Orchid Health And Wellbeing Consultancy,16489
32UB,Boston Borough Council,Fleet Replacement,6216,Purchases,8005,"NARROW WIDTH, OLYMPUS 19N ELITE 6 6X2N REAR STEER 26T",17/12/2021,230984,179265,Capital,Dennis Eagle Limited,692
32UB,Boston Borough Council,Non Distributed Costs,3502,Superann Pension Incrs Act,1007,PENSION RECHARGES ADDED YEARS NOV 21,03/12/2021,230985,5694.37,Revenue,Lincolnshire County Council Pension Fund,220
32UB,Boston Borough Council,Green Homes Grant,3517,Green Homes Phase 2,4025,SURVEYS AND EPC'S CARRIED OUT BY OUR CONTRACTOR BREYER GROUP FOR APPLICATIONS,10/12/2021,230991,9785.1,Revenue,Breyer Group Plc,16894
32UB,Boston Borough Council,Leisure Pool Services,3434,Water Rates,2050,ROWLEY ROAD 27.10.21-26.11.21,03/12/2021,230994,842.28,Revenue,Wave,13339
32UB,Boston Borough Council,Office Cleaning,3203,Agency Staff,1032,CLEANERS X3,10/12/2021,230995,671.44,Revenue,Workforce (Boston) Limited,11042
32UB,Boston Borough Council,Central Training & Recruitment,2001,Training Courses,1108,PA1 &PA6,10/12/2021,231004,497,Revenue,Lincoln Rural Training,17154
32UB,Boston Borough Council,Central Training & Recruitment,2001,Training Courses,1108,COURSE PA1 TRAINING,10/12/2021,231005,346,Revenue,Lincoln Rural Training,17154
32UB,Boston Borough Council,Leisure Pool Services,3434,Resale Gym,3035,QUOTATION W2021012,10/12/2021,231006,556,Revenue,Identity Centre Ltd,13213
32UB,Boston Borough Council,Refuse Collection,3234,Agency Staff,1032,AGENCY W/E 28.11.21,10/12/2021,231007,5671.73,Revenue,Comensura Ltd,9671
32UB,Boston Borough Council,Grounds Maintenance,4401,Agency Staff,1032,AGENCY W/E 28.11.21,10/12/2021,231007,868.55,Revenue,Comensura Ltd,9671
32UB,Boston Borough Council,Bed & Breakfast,3222,Bed And Breakfast Accom Fees,3306,14 NIGHTS ACCOMMODATION,03/12/2021,231008,490,Revenue,West End Rooms,14537
32UB,Boston Borough Council,Housing Advice & Homelessness,3241,Project Costs,3935,SECURITY 19.11.21-25.11.21,03/12/2021,231009,1176,Revenue,The New England Hotel,15731
32UB,Boston Borough Council,Housing Advice & Homelessness,3241,Project Costs,3935,12 ROOMS 19.11.21-25.11.21,03/12/2021,231010,2940,Revenue,The New England Hotel,15731
32UB,Boston Borough Council,Housing Advice & Homelessness,3241,Project Costs,3935,RENT 12.11.21-21.11.21,03/12/2021,231011,450,Revenue,The New England Hotel,15731
32UB,Boston Borough Council,Housing Advice & Homelessness,3241,Project Costs,3935,RENT 12.11.21-18.11.21,03/12/2021,231012,2940,Revenue,The New England Hotel,15731
32UB,Boston Borough Council,Housing Advice & Homelessness,3241,Project Costs,3935,SECURITY 12.11.21-18.11.21,03/12/2021,231013,1176,Revenue,The New England Hotel,15731
32UB,Boston Borough Council,Housing Advice & Homelessness,3241,Project Costs,3935,RENT 12.11.21-18.11.21,03/12/2021,231014,315,Revenue,The New England Hotel,15731
32UB,Boston Borough Council,Psica,6514,Payments To Contractors,8002,TOWNSCAPE HERITAGE JULY-SEPT 2021,23/12/2021,231017,8887.02,Capital,Heritage Trust Of Lincolnshire Ltd,660
32UB,Boston Borough Council,Marketing And Communications,1003,Training Courses,1108,ILM L5-1 DELEGATE,23/12/2021,231022,1435.5,Revenue,Challenge Consulting,17182
32UB,Boston Borough Council,Building Mtc-Public Buildings,4402,Materials,3006,GMLC LIGHT FITTINGS,23/12/2021,231024,926.98,Revenue,D & M Barthorpe,210
32UB,Boston Borough Council,Towns Fund - Pe21,3426,Professional Services,3301,UPDATE THE BLACK SLUICE PUMPING STATION BUSINESS PLAN,23/12/2021,231027,1050,Revenue,Heritage Trust Of Lincolnshire Ltd,660
32UB,Boston Borough Council,Community Champions: La Fund,1019,Language Line,3908,TRANSLATION COSTS FOR PROJECT,10/12/2021,231028,950,Revenue,Pab Languages Centre,11529
32UB,Boston Borough Council,Bereavement,2401,Publicity,3513,RECRUITMENT ADVERTISING FOR BOSTON CREMATORIUM,17/12/2021,231031,550,Revenue,Federation Of Burial & Cremation Authorities,1853
32UB,Boston Borough Council,Vehicle Holding Account,2206,Miscellaneous,3905,STEAM CLEANING VEHICLES OCTOBER 2021,10/12/2021,231033,1833.33,Revenue,Peter Smith Commercials Ltd,11923
32UB,Boston Borough Council,Building Mtc-Public Buildings,4402,Materials,3006,ATTEND TO AIR CON SYSTEM,17/12/2021,231034,420,Revenue,Adcock Refrigeration & Air Conditioning Ltd,1682
32UB,Boston Borough Council,Towns Fund - Pe21,3426,Professional Services,3301,TOWNS FUND SUPPORT UP TO 31ST MARCH 2022,17/12/2021,231098,990,Revenue,Rose Regeneration Limited,14694
32UB,Boston Borough Council,Bereavement,2401,Medical Assessors Fees,3302,MEDICAL DUTIES NOV 21,10/12/2021,231106,1295,Revenue,Dr Andrew Doddrell,10098
32UB,Boston Borough Council,Building Mtc-Public Buildings,4402,Materials,3006,CARRYOUT WORKS TO TAPS/SHOWERS,17/12/2021,231108,424.76,Revenue,Glen Farrow Uk Ltd,12204
32UB,Boston Borough Council,Building Mtc-Public Buildings,4402,Materials,3006,GMLC ATTEND TO CLEAN FILTER & TEST,17/12/2021,231110,548.1,Revenue,Glen Farrow Uk Ltd,12204
32UB,Boston Borough Council,Building Mtc-Public Buildings,4402,Materials,3006,GYM BOILER WORKS,17/12/2021,231111,1374.87,Revenue,Glen Farrow Uk Ltd,12204
32UB,Boston Borough Council,Building Mtc-Public Buildings,4402,Materials,3006,GAS BOILER NOT WORKING,17/12/2021,231112,528.46,Revenue,Glen Farrow Uk Ltd,12204
32UB,Boston Borough Council,Building Mtc-Public Buildings,4402,Materials,3006,FENSIDE COM CENTRE INTRUDER ALARM 12MTHS,23/12/2021,231113,264.41,Revenue,Gb Security Group,109
32UB,Boston Borough Council,Computer Costs,1503,Software Services,3426,INSIGHTS SUBSCRIPTION (REPORTING) - 1 YEAR - ,23/12/2021,231116,338.93,Revenue,Altinet Ltd,14654
32UB,Boston Borough Council,Leisure Pool Services,3434,Miscellaneous,3905,HB400 IN YELLOW - WITH DETAILS AS DISCUSSED,23/12/2021,231120,1072.5,Revenue,Corporate Leisure,8142
32UB,Boston Borough Council,Leisure Pool Services,3434,Miscellaneous,3905,AQ053 IN RED - NO BRANDING,23/12/2021,231120,1208.25,Revenue,Corporate Leisure,8142
32UB,Boston Borough Council,Community Testing Centre,3516,Agency Staff,1032,STAFFING & MILEAGE - OCT 2021,10/12/2021,231126,3154.45,Revenue,Magna Vitae Leisure Trust,13539
32UB,Boston Borough Council,Dog Collection,3219,Professional Services,3301,STRAY DOG COLLECTION SERVICES,10/12/2021,231127,1120.83,Revenue,Pestinator Uk Ltd,13043
32UB,Boston Borough Council,Leisure Pool Services,3434,Professional Services,3301,FITNESS CLASSES NOV 21,10/12/2021,231129,260,Revenue,Top Banana Fitness,16459
32UB,Boston Borough Council,Vehicle Holding Account,2206,Materials,3006,HIRE MA14 SUY NOV 21,10/12/2021,231136,850,Revenue,Phil Haines Coaches Ltd,351
32UB,Boston Borough Council,Vehicle Holding Account,2206,Materials,3006,LONG TERM VAN HIRE NOV 21,23/12/2021,231138,1200,Revenue,Phil Haines Coaches Ltd,351
32UB,Boston Borough Council,Vehicle Holding Account,2206,Sfs Fixed Maintenance,3042,LT21 NDN CONTRACT MAINTENANCE VF97,23/12/2021,231139,1504.17,Revenue,Specialist Fleet Services Ltd,16163
32UB,Boston Borough Council,Vehicle Holding Account,2206,Sfs Fixed Maintenance,3042,GK20 UYN CONTRACT MAINTENANCE VF88,23/12/2021,231139,1614.08,Revenue,Specialist Fleet Services Ltd,16163
32UB,Boston Borough Council,Vehicle Holding Account,2206,Sfs Fixed Maintenance,3042,LS20 XDB CONTRACT MAINTENANCE VF87,23/12/2021,231139,1620.83,Revenue,Specialist Fleet Services Ltd,16163
32UB,Boston Borough Council,Vehicle Holding Account,2206,Sfs Fixed Maintenance,3042,VK70 XZT CONTRACT MAINTENANCE VF90,23/12/2021,231139,1829.17,Revenue,Specialist Fleet Services Ltd,16163
32UB,Boston Borough Council,Vehicle Holding Account,2206,Sfs Fixed Maintenance,3042,VK70 XZU CONTRACT MAINTENANCE VF91,23/12/2021,231139,1829.17,Revenue,Specialist Fleet Services Ltd,16163
32UB,Boston Borough Council,Vehicle Holding Account,2206,Sfs Fixed Maintenance,3042,VK70 XZV CONTRACT MAINTENANCE VF92,23/12/2021,231139,1829.17,Revenue,Specialist Fleet Services Ltd,16163
32UB,Boston Borough Council,Vehicle Holding Account,2206,Sfs Fixed Maintenance,3042,VK70 XZW CONTRACT MAINTENANCE VF93,23/12/2021,231139,1829.17,Revenue,Specialist Fleet Services Ltd,16163
32UB,Boston Borough Council,Vehicle Holding Account,2206,Sfs Fixed Maintenance,3042,VK70 XZX CONTRACT MAINTENANCE VF94,23/12/2021,231139,1829.17,Revenue,Specialist Fleet Services Ltd,16163
32UB,Boston Borough Council,Vehicle Holding Account,2206,Sfs Fixed Maintenance,3042,VK70 XZZ CONTRACT MAINTENANCE VF96,23/12/2021,231139,1829.17,Revenue,Specialist Fleet Services Ltd,16163
32UB,Boston Borough Council,Vehicle Holding Account,2206,Sfs Fixed Maintenance,3042,VX18 KFG CONTRACT MAINTENANCE VF66,23/12/2021,231139,1829.17,Revenue,Specialist Fleet Services Ltd,16163
32UB,Boston Borough Council,Vehicle Holding Account,2206,Sfs Fixed Maintenance,3042,VK70 XZY CONTRACT MAINTENANCE VF95,23/12/2021,231139,1829.17,Revenue,Specialist Fleet Services Ltd,16163
32UB,Boston Borough Council,Vehicle Holding Account,2206,Sfs Fixed Maintenance,3042,H4 BBC CONTRACT MAINTENANCE VF82,23/12/2021,231139,1913.58,Revenue,Specialist Fleet Services Ltd,16163
32UB,Boston Borough Council,Blg Control (Fee Earning),3201,Software Licences,3407,SUBSCRIPTION FEE 01.04.21-31.03.22,10/12/2021,231140,3720.55,Revenue,East Lindsey District Council,225
32UB,Boston Borough Council,Vehicle Holding Account,2206,Sfs Payg,3043,CARRYOUT INSPECTION & WEIGHT TEST,23/12/2021,231144,265.12,Revenue,Specialist Fleet Services Ltd,16163
32UB,Boston Borough Council,Vehicle Holding Account,2206,Sfs Payg,3043,SUPPLY/REPLACE RAVE RAIL HINGES,23/12/2021,231146,481.75,Revenue,Specialist Fleet Services Ltd,16163
32UB,Boston Borough Council,Vehicle Holding Account,2206,Sfs Payg,3043,LIGHT BAR/EXT ON LIFTS BENT FIT NEXT INS,23/12/2021,231150,305.19,Revenue,Specialist Fleet Services Ltd,16163
32UB,Boston Borough Council,Vehicle Holding Account,2206,Sfs Payg,3043,SUPPLY/REPLACE RAVE RAIL HINGES,23/12/2021,231153,486.81,Revenue,Specialist Fleet Services Ltd,16163
32UB,Boston Borough Council,Office Cleaning,3203,Agency Staff,1032,CLEANER X2,23/12/2021,231160,569.53,Revenue,Workforce (Boston) Limited,11042
32UB,Boston Borough Council,Tree Management Service,3430,Specialist Services,4602,TO CLEAR FALLEN TREE - TATTERSHALL ROAD,17/12/2021,231162,375,Revenue,D W Landscape Services,637
32UB,Boston Borough Council,Computer Costs,1503,Software Services,3426,VMWARE WORKSPACE ONE - CSE - PERPETUAL 1 YEAR,23/12/2021,231170,1285.2,Revenue,Phoenix Software Ltd,644
32UB,Boston Borough Council,Computer Costs,1503,Software Services,3426,BASIC SUPPORT / SUBSCRIPTION 1 YEAR,23/12/2021,231170,1503.6,Revenue,Phoenix Software Ltd,644
32UB,Boston Borough Council,Property Services,1403,Professional Services,3301,PROVISION OF RENTAL VALUATION FOR PROBATION,17/12/2021,231171,1050,Revenue,Kier Business Services Ltd,13077
32UB,Boston Borough Council,Central Training & Recruitment,2001,Training Courses,1108,SHIP SANITATION CERTIFICATES,17/12/2021,231173,300,Revenue,Association Of Port Health Authorities,1075
32UB,Boston Borough Council,Street Cleansing Service,3235,Specialist Services,4602,COLLECTION OF SHARPS WASTE 1100LTR BIN 12/21,17/12/2021,231174,500,Revenue,Healthguard Ltd,3406
32UB,Boston Borough Council,Office Cleaning,3203,Cleaning Materials,2080,A277123 LINK51 SINGLE COMPARTMENT NEST,23/12/2021,231175,252,Revenue,Espo,31
32UB,Boston Borough Council,Environmental Protection,3216,Air Quality / Contam Land,3913,ENV0735-SERVICE-NO2 TUBE 20% TEA/WATER+ANALYSIS,23/12/2021,231176,684,Revenue,Gradko International Ltd,866
32UB,Boston Borough Council,Building Mtc-Public Buildings,4402,Materials,3006,CALLOUT TO CCTV CAMERA FAULT,17/12/2021,231178,300,Revenue,Safe Control Ltd,16367
32UB,Boston Borough Council,Housing Advice & Homelessness,3241,Project Costs,3935,RENT FROM 26.11.21-02.12.21,10/12/2021,231187,990,Revenue,The New England Hotel,15731
32UB,Boston Borough Council,Housing Advice & Homelessness,3241,Project Costs,3935,12 ROOMS RENT 26.11.21-02.12.21,10/12/2021,231188,2940,Revenue,The New England Hotel,15731
32UB,Boston Borough Council,Housing Advice & Homelessness,3241,Project Costs,3935,SECURITY 26.11.21-02.12.21,10/12/2021,231189,1176,Revenue,The New England Hotel,15731
32UB,Boston Borough Council,Refuse Collection,3234,Agency Staff,1032,AGENCY W/E 05.12.21,17/12/2021,231190,4921.08,Revenue,Comensura Ltd,9671
32UB,Boston Borough Council,Grounds Maintenance,4401,Agency Staff,1032,AGENCY W/E 05.12.21,17/12/2021,231190,898.25,Revenue,Comensura Ltd,9671
32UB,Boston Borough Council,Housing Grants & Enforcement,3228,Software Licences,3407,110002414356 AUTOCAD LT 2022 SINGLE - ANNUAL,17/12/2021,231266,390,Revenue,Symetri Ltd,17120
32UB,Boston Borough Council,Development Management,3306,Agency Staff,1032,DM SERVICES NOV 21,17/12/2021,231267,7095,Revenue,Capita Property & Infrastructure Ltd,13782
32UB,Boston Borough Council,Office Cleaning,3203,Agency Staff,1032,CLEANERS X 2,17/12/2021,231272,569.53,Revenue,Workforce (Boston) Limited,11042
32UB,Boston Borough Council,Refuse Collection,3234,Agency Staff,1032,SUPPLY OF TEMPORARY STAFF W/E 12.12.21,23/12/2021,231275,3668.69,Revenue,Comensura Ltd,9671
32UB,Boston Borough Council,Grounds Maintenance,4401,Agency Staff,1032,SUPPLY OF TEMPORARY STAFF W/E 12.12.21,23/12/2021,231275,1300.57,Revenue,Comensura Ltd,9671
32UB,Boston Borough Council,Parking,3449,Professional Services,3301,CASHLESS PARKING FEES NOV 21,23/12/2021,231279,331.42,Revenue,Chipside Ltd,10954
32UB,Boston Borough Council,Planning Policy,3304,Charitable Donations,3435,MROR257 INTERPOSE SOFTWARE MAINTENANCE,23/12/2021,231280,280,Revenue,Dotted Eyes Ltd,1781
32UB,Boston Borough Council,Development Management,3306,Software Assurance,3425,MROR257 INTERPOSE SOFTWARE MAINTENANCE,23/12/2021,231280,280,Revenue,Dotted Eyes Ltd,1781
32UB,Boston Borough Council,Leisure Pool Services,3434,Chemicals,3009,CALC HYPO HTH GRAN & SULPHURIC ACID,17/12/2021,231293,747.95,Revenue,Univar B.V.,12917
32UB,Boston Borough Council,Vehicle Holding Account,2206,Materials,3006,HIRE OF YP14 PZG NOV 21,17/12/2021,231295,1200,Revenue,Phil Haines Coaches Ltd,351
32UB,Boston Borough Council,Registration Of Electors,3109,Postages,3405,RESPONSE PLUS 16.10.21-13.11.21,17/12/2021,231301,348.04,Revenue,Royal Mail,86
32UB,Boston Borough Council,Elections,3103,Postages,3405,POSTAGE CHARGES 31.10.21-18.11.21,23/12/2021,231302,285.79,Revenue,Royal Mail,86
32UB,Boston Borough Council,Marketing And Communications,1003,Software Licences,3407,EXTERNAL COMMUNICATION LICENCE,17/12/2021,231304,3395,Revenue,Newzapp Communications,16209
32UB,Boston Borough Council,Licensing,3212,Software Licences,3407,EXTERNAL COMMUNICATION LICENCE,17/12/2021,231304,970,Revenue,Newzapp Communications,16209
32UB,Boston Borough Council,Refuse Collection,3234,Software Licences,3407,EXTERNAL COMMUNICATION LICENCE,17/12/2021,231304,485,Revenue,Newzapp Communications,16209
32UB,Boston Borough Council,Commercial Waste,3237,Refuse Bin Purchase,3865,360L PURPLE BINS,23/12/2021,231305,282,Revenue,A & C Weber Uk Ltd,11142
32UB,Boston Borough Council,Commercial Waste,3237,Refuse Bin Purchase,3865,240L PURPLE BINS,23/12/2021,231305,781.2,Revenue,A & C Weber Uk Ltd,11142
32UB,Boston Borough Council,Commercial Waste,3237,Refuse Bin Purchase,3865,660L PURPLE  BINS,23/12/2021,231305,1322.25,Revenue,A & C Weber Uk Ltd,11142
32UB,Boston Borough Council,Commercial Waste,3237,Refuse Bin Purchase,3865,1100L PURPLE BINS,23/12/2021,231305,9039.75,Revenue,A & C Weber Uk Ltd,11142
32UB,Boston Borough Council,Recycling,3238,Refuse Bin Purchase,3865,240 LITRE BLUE BINS WITH BBC LOGO TO FRONT ,17/12/2021,231306,19836,Revenue,A & C Weber Uk Ltd,11142
32UB,Boston Borough Council,Cctv,3206,Equipment Purchase,3001,2121 4G CCTV CAMERA + INSTALLATION + 1YR DATA,17/12/2021,231309,2312.8,Revenue,Videcom Security Limited,13418
32UB,Boston Borough Council,Building Mtc-Public Buildings,4402,Materials,3006,LABOUR AND MATERIALS,23/12/2021,231315,5729,Revenue,Gilgen Door Systems Limited,380
32UB,Boston Borough Council,Housing Advice & Homelessness,3241,Business Rates,2040,2 LEICESTER SQ CTAX 01.04.21-31.03.22,17/12/2021,231325,1269.15,Revenue,Boston Borough Council,1433
32UB,Boston Borough Council,Housing Advice & Homelessness,3241,Business Rates,2040,14 STATION ST CTAX 01.04.21-31.03.22,17/12/2021,231326,1269.15,Revenue,Boston Borough Council,1433
32UB,Boston Borough Council,Housing Advice & Homelessness,3241,Business Rates,2040,1 LEICESTER SQ CTAX 01.04.21-31.03.22,17/12/2021,231327,1269.15,Revenue,Boston Borough Council,1433
32UB,Boston Borough Council,Housing Advice & Homelessness,3241,Software Licences,3407,LETTERS NOV 20-NOV 21,23/12/2021,231337,975,Revenue,Home Connections,13545
32UB,Boston Borough Council,Housing Advice & Homelessness,3241,Software Licences,3407,HOPE HOSTING/SUPPORT - SEPT-NOV 21,23/12/2021,231338,1575,Revenue,Home Connections,13545
32UB,Boston Borough Council,Land Charges,3232,Lcc Search Fees,3984,LOCAL LAND SEARCH FEES OCT 21,17/12/2021,231349,1251.15,Revenue,Lincolnshire County Council,12322
32UB,Boston Borough Council,Housing Grants & Enforcement,3228,Professional Services,3301,DASH ANNUAL SUBSCRIPTION FEE,23/12/2021,231350,2500,Revenue,Derby City Council,2414
32UB,Boston Borough Council,Housing Advice & Homelessness,3241,Project Costs,3935,SECURITY 03.12.21-09.12.21,17/12/2021,231353,1176,Revenue,The New England Hotel,15731
32UB,Boston Borough Council,Housing Advice & Homelessness,3241,Project Costs,3935,RENT 03.12.21-09.12.21,17/12/2021,231354,2940,Revenue,The New England Hotel,15731
32UB,Boston Borough Council,Housing Advice & Homelessness,3241,Project Costs,3935,RENT FROM 01.12.21-09.12.21,17/12/2021,231355,1080,Revenue,The New England Hotel,15731
32UB,Boston Borough Council,National Assistance Burials,3440,Transfer Payments,4900,PUBLIC HEATH FUNERAL,23/12/2021,231356,357.77,Revenue,Dignity Funerals Ltd,17194
32UB,Boston Borough Council,Welcome Back Fund,3248,Professional Services,3301,"CIRCUS PERFORMANCES, WALKABOUT",23/12/2021,231360,500,Revenue,Helter Skelter Arts Ltd,17218
32UB,Boston Borough Council,Welcome Back Fund,3248,Professional Services,3301,DEVELOPMENT OF A LANTERN TRAIL TO SUPPORT BOSTON CHRISTMAS MARKET,23/12/2021,231447,780,Revenue,Laura Mabbutt,17268
32UB,Boston Borough Council,Welcome Back Fund,3248,Professional Services,3301,TO PROVIDE CONSULTATION SERVICES AND DEVELOPMENT OF THE HIGH STREET ELF TRAIL ,23/12/2021,231448,2499,Revenue,Rural Retailer Ltd,17256
32UB,Boston Borough Council,Commercial Waste,3237,Refuse Bin Purchase,3865,"1,100 LITRE GREEN BINS",23/12/2021,231449,1398,Revenue,A & C Weber Uk Ltd,11142
32UB,Boston Borough Council,Vehicle Holding Account,2206,Tyres,2208,TYRE MAINTENANCE CONTRACT DECEMBER 2021,23/12/2021,231452,2674.71,Revenue,B A Bush & Son Ltd,12196
32UB,Boston Borough Council,Parking,3449,Cash Collection & Counting,4621,CAR PARKS CASH COLLECTIONS,23/12/2021,231462,1220.12,Revenue,Kings Armoured Security Services Ltd,10472
32UB,Boston Borough Council,Vehicle Holding Account,2206,Materials,3006,PATCH REPAIR FLOOR FRONT AND BACK/NEW PANELS ,23/12/2021,231467,695,Revenue,Craftwork Engineering & Fabrication,9713
32UB,Boston Borough Council,Elections,3103,Postages,3405,14.11.21 - 02.12.21 POST CHARGES,23/12/2021,231468,305.37,Revenue,Royal Mail,86
32UB,Boston Borough Council,Princess Royal Sports Arena,3452,Gas,2022,BULK PROPANE 03.12.21,23/12/2021,231469,11087.3,Revenue,Calor Gas Limited,13658
32UB,Boston Borough Council,Vehicle Holding Account,2206,Sfs Payg,3043,VU62 HVH - REPLACE WINDOWS IN BIN LIFTS,23/12/2021,231473,449.71,Revenue,Specialist Fleet Services Ltd,16163
32UB,Boston Borough Council,Street Cleansing Service,3235,Enforcement Partners,3041,FIXED PENALTY NOTICES OCT 21,23/12/2021,231479,8122.5,Revenue,La Support Limited,14578
32UB,Boston Borough Council,Street Cleansing Service,3235,Enforcement Partners,3041,FIXED PENALTY NOTICES NOV 21,23/12/2021,231480,5700,Revenue,La Support Limited,14578
32UB,Boston Borough Council,Commercial Waste,3237,Refuse Bin Purchase,3865,"1,100 LITRE BLUE BINS",23/12/2021,231483,516,Revenue,A & C Weber Uk Ltd,11142
32UB,Boston Borough Council,Commercial Waste,3237,Refuse Bin Purchase,3865,"1,100 LITRE GREEN BINS ",23/12/2021,231483,1548,Revenue,A & C Weber Uk Ltd,11142
32UB,Boston Borough Council,Commercial Waste,3237,Refuse Bin Purchase,3865,1100 LITRE GREEN BINS,23/12/2021,231484,258,Revenue,A & C Weber Uk Ltd,11142
32UB,Boston Borough Council,Commercial Waste,3237,Refuse Bin Purchase,3865,TRANSPORT COST FOR BINS,23/12/2021,231484,378,Revenue,A & C Weber Uk Ltd,11142
32UB,Boston Borough Council,Commercial Waste,3237,Refuse Bin Purchase,3865,1100 LITRE GREY WITH PURPLE LIDS BINS,23/12/2021,231484,3961,Revenue,A & C Weber Uk Ltd,11142
32UB,Boston Borough Council,Vehicle Holding Account,2206,Chris Sellars Payg,3045,HUSQVARNA P525 FX15 JKY FLEET NO. VF70 ,23/12/2021,231487,501.11,Revenue,Chris Sellars Groundcare Ltd,6627
32UB,Boston Borough Council,Parking,3449,Cp Machine Comms (Sim Cards),4631,"FLOWBIRD WEB OFFICE, INCLUDING AIRTIME",23/12/2021,231489,5574,Revenue,Flowbird Smart City Uk Ltd,14367
32UB,Boston Borough Council,Community Champions: La Fund,1019,Language Line,3908,09.12.21 - WRITTEN TRANSLATION NOTICE,23/12/2021,231495,345.9,Revenue,Pab Languages Centre,11529
32UB,Boston Borough Council,Democratic Services,2101,Hire Of Halls,3931,"20.09.21HIRE OF SUITE, CATERING & DRINKS",23/12/2021,231497,275,Revenue,Boston United Fc Limited,6432
32UB,Boston Borough Council,Democratic Services,2101,Hire Of Halls,3931,"HIRE OF SUITE, CATERING & DRINKS25.10.21",23/12/2021,231501,272,Revenue,Boston United Fc Limited,6432
32UB,Boston Borough Council,Development Management,3306,Agency Staff,1032,TOWN PLANNING CONSULTANCY NOV 21,23/12/2021,231504,5700,Revenue,Gd Planning,16774
32UB,Boston Borough Council,Registration Of Electors,3109,Printing And Stationery,3201,01.06.21-30.11.21ELECTORAL REG 2021 FEES,23/12/2021,231506,2393.97,Revenue,Civica Election Services Ltd,6513
32UB,Boston Borough Council,Registration Of Electors,3109,Books And Publications,3007,SCHOFIELD'S ELECTION LAW PR R61,23/12/2021,231507,288,Revenue,Thomson Reuters,10373
32UB,Boston Borough Council,Balance Sheet,7000,Capita 360 - Council Tax,9381,ADJUSTMENTS FOR CAPITA PAY360 29.11.21,23/12/2021,231509,808.14,Revenue,Capita Software Services Limited,121
32UB,Boston Borough Council,Credit Control Unit,1013,Transaction Costs,4701,TRANSACTION CHARGES  NOV 21,23/12/2021,231510,1509.76,Revenue,Capita Software Services Limited,121
32UB,Boston Borough Council,Photocopiers,2503,Plant Maintenance,2012,QUARTERLY RENTAL 04.12.21-03.03.22,23/12/2021,231511,1407.41,Revenue,Capita Software Services Limited,121
32UB,Boston Borough Council,Leisure Pool Services,3434,Rental Of Phone System,3418,FIBRESTREAM RENTAL JAN 2022,23/12/2021,231512,368,Revenue,Multidata Ltd,12625
32UB,Boston Borough Council,Computer Costs,1503,Software Maintenance,3408,01.06.21-30.11.21 MODERN.GOV SUPPORT,23/12/2021,231515,1889.34,Revenue,Civica Uk Ltd,124
32UB,Boston Borough Council,Computer Costs,1503,Software Maintenance,3408,01.12.21-31.05.22 MODERN.GOV SUPPORT,23/12/2021,231517,3625,Revenue,Civica Uk Ltd,124
32UB,Boston Borough Council,Credit Control Unit,1013,Software Licences,3407,BANK WIZARD ANNUAL LICENCE,23/12/2021,231522,4474.05,Revenue,Experian Ltd,1067
32UB,Boston Borough Council,Elections,3103,Books And Publications,3007,17.10.19 PARKER LAW CONDUCT ELECTIONS,23/12/2021,231524,420,Revenue,Lexisnexis Butterworths,680
32UB,Boston Borough Council,Registration Of Electors,3109,Printing And Stationery,3201,CANVASS FORMS SCHEDULED MAILING,23/12/2021,231533,708.17,Revenue,Civica Election Services Ltd,6513
32UB,Boston Borough Council,Marketing And Communications,1003,Language Line,3908,TELEPHONE INTERPRETING 02.11.21-30.11.21,23/12/2021,231548,1104.96,Revenue,Thebigword,7256
32UB,Boston Borough Council,Finance,1502,Professional Services,3301,BBC/PSPS CONTRACT PRICE DEC 21,23/12/2021,231549,238097.42,Revenue,Public Sector Partnership Services Ltd,16086
32UB,Boston Borough Council,Local Restriction Support,1015,Arg Scheme,4016,BOSTON PUBLIC ARTS EVENT,23/12/2021,231550,9520,Revenue,University Of Lincoln,311
32UB,Boston Borough Council,Health Activity,3415,Project Costs,3935,CONTRIBUTION ADDITIONAL WORKS,23/12/2021,231551,2187.42,Revenue,University Of Lincoln,311
32UB,Boston Borough Council,Refuse Collection,3234,Agency Staff,1032,AGENCY W/E 19.12.21,23/12/2021,231559,4134.1,Revenue,Comensura Ltd,9671
32UB,Boston Borough Council,Grounds Maintenance,4401,Agency Staff,1032,AGENCY W/E 19.12.21,23/12/2021,231559,761.72,Revenue,Comensura Ltd,9671
32UB,Boston Borough Council,Legal Services,1402,Subscriptions,3600,LEXIS NEXIS DD -0 REFERENCE DI055369M,01/12/2021,72504,795.83,Revenue,Lexisnexis Butterworths,
32UB,Boston Borough Council,Drainage Board Precepts,9000,Precepts,6500,WITHAM FOURTH IDB 01.12.21,01/12/2021,72514,554024.75,Precept,Witham Fourth IDB,
32UB,Boston Borough Council,Internal Communications,2504,Rental Of Phone System,3418,BT DD - RECURRING CHARGES - NOV 2021,03/12/2021,72546,301.1,Revenue,BT plc,
32UB,Boston Borough Council,Corporate & Democratic Core,3102,Bank Charges,3510,ACADEMY MANAGED SERVICES - CAPITA DD,08/12/2021,72570,3635.98,Revenue,Capita Software Services Limited,
32UB,Boston Borough Council,Credit Control Unit,1013,Postages,3405,IMAIL - BOSTON REMINDERS - 08.11.21-12.11.21,08/12/2021,72622,713.36,Revenue,UK Mail,
32UB,Boston Borough Council,Loan Interest,9010,Interest Payments,6301,PWLB INTEREST 6 MONTHS,10/12/2021,72630,127000,Revenue,Public Works Loan Board,
32UB,Boston Borough Council,Loan Interest,9010,Interest Payments,6301,PWLB INTEREST PAYMENT 6 MONTHS,13/12/2021,72631,48400,Revenue,Public Works Loan Board,
32UB,Boston Borough Council,Leisure Pool Services,3434,Provisions / Purchases,3008,BOOKER DD RE GMLC GOODS - INVOICE 3544791,16/12/2021,72646,279.18,Revenue,Bookers,
32UB,Boston Borough Council,Hackney Carriage Licences,3233,Hackney Carriges Expenses,3521,LAND CHARGES - 9 CHECKS ,17/12/2021,72657,360,Revenue,DBS,
32UB,Boston Borough Council,Bereavement,2401,Electricity,2021,ROBIN HOODS WALK CREM - 01.11.21-30.11.21,20/12/2021,72686,1277.66,Revenue,Total Gas & Power,
32UB,Boston Borough Council,Municipal Buildings,2404,Electricity,2021,MB ACCOUNT 3004800128 -01.11.21-30.11.21,20/12/2021,72686,1087.11,Revenue,Total Gas & Power,
32UB,Boston Borough Council,Municipal Buildings,2404,Electricity,2021,MB ACCOUNT 3005069232 -01.11.21-30.11.21,20/12/2021,72686,3597.62,Revenue,Total Gas & Power,
32UB,Boston Borough Council,Depot,2405,Electricity,2021,ST JOHNS RD - 01.11.21-30.11.21,20/12/2021,72686,561.63,Revenue,Total Gas & Power,
32UB,Boston Borough Council,Redstone Caravan Site,3225,Electricity,2021,REDSTONE IND ESTATE -01.11.21-30.11.21,20/12/2021,72686,4273.68,Revenue,Total Gas & Power,
32UB,Boston Borough Council,Leisure Pool Services,3434,Electricity,2021,GMLC - 01.11.21-30.11.21,20/12/2021,72686,6165.24,Revenue,Total Gas & Power,
32UB,Boston Borough Council,Footway Lighting & Mtc,3447,Electricity,2021,FOOTWAY LIGHTING - 01.11.21-30.11.21,20/12/2021,72686,3556.06,Revenue,Total Gas & Power,
32UB,Boston Borough Council,Parking,3449,Electricity,2021,CAR PARK LIGHTING TICKET MACHINES - 01.11.21-30.11.21,20/12/2021,72686,750.84,Revenue,Total Gas & Power,
32UB,Boston Borough Council,Princess Royal Sports Arena,3452,Electricity,2021,PRSA - 01.11.21 - 30.11.21,20/12/2021,72686,8350.82,Revenue,Total Gas & Power,
32UB,Boston Borough Council,Nndr,9006,Business Rates Retention,4006,LINCS CC DD RE BR TARIFFS 2021/22,20/12/2021,72687,411257,Precept,Lincolnshire County Council,
32UB,Boston Borough Council,Corporate & Democratic Core,3102,Bank Charges,3510,BOTTOMLINE MONTHLY AGREEMENT RE BACS,20/12/2021,72723,671,Revenue,Bottomline Technologies,
32UB,Boston Borough Council,Nndr Control Account,5103,Central Government Share,7264,BRR CENTRAL SHARE 2021.22,20/12/2021,72724,820288,Precept,DCLG,
32UB,Boston Borough Council,Council Tax Summary Account,5000,Ct Requirement Lpa,7802,LINCS POLICE PRECEPT,21/12/2021,72728,526213.99,Precept,Lincs Police,
32UB,Boston Borough Council,"Arts, Heritage & Tourism",3407,Water Rates,2050,GUILDHALL - 04.009.21 - 03.12.21,21/12/2021,72729,596.71,Revenue,Anglian Water,
32UB,Boston Borough Council,Corporate & Democratic Core,3102,Bank Charges,3510,CAPITA DD - ACADEMY MANAGED SERVICES,22/12/2021,72792,3972.62,Revenue,Capita Software Services Limited,
32UB,Boston Borough Council,Council Tax Summary Account,5000,Ct Requirement Lcc,7801,LINCS COUNTY COUNCIL ADDITIONAL PRECEPT,22/12/2021,72794,100522.6,Precept,Lincolnshire County Council,
32UB,Boston Borough Council,Council Tax Summary Account,5000,Ct Requirement Lcc,7801,LINCS COUNTY COUNCIL PRECEPT,22/12/2021,72794,2696234.93,Precept,Lincolnshire County Council,
32UB,Boston Borough Council,Nndr Control Account,5103,Lincs County Council Share,7266,LINCS COUNTY COUNCIL NNDR SHARE,22/12/2021,72794,112975.4,Precept,Lincolnshire County Council,
32UB,Boston Borough Council,Legal Services,1402,Subscriptions,3600,LEXIS NEXIS DD - REFERENCE DI055369M,31/12/2021,72810,795.83,Revenue,Lexisnexis Butterworths,
32UB,Boston Borough Council,Internal Communications,2504,Rental Of Phone System,3418,FOEHN DD'S MONTHLY,29/12/2021,72817,2686.9,Revenue,Foehn,
32UB,Boston Borough Council,Vehicle Holding Account,2206,Fuel Transport,2201,FUEL TO 5/12,31/12/2021,72848,712.95,Revenue,Fuel Card Services,
32UB,Boston Borough Council,Vehicle Holding Account,2206,Fuel Transport,2201,FUEL TO 5/12,31/12/2021,72851,2810.79,Revenue,Fuel Card Services,
32UB,Boston Borough Council,Vehicle Holding Account,2206,Fuel Transport,2201,FUEL TO 12/12,31/12/2021,72852,587.84,Revenue,Fuel Card Services,
32UB,Boston Borough Council,Vehicle Holding Account,2206,Fuel Transport,2201,FUEL TO 12/12,31/12/2021,72854,2897.93,Revenue,Fuel Card Services,
32UB,Boston Borough Council,Vehicle Holding Account,2206,Fuel Transport,2201,FUEL TO 19/12,31/12/2021,72855,486.16,Revenue,Fuel Card Services,
32UB,Boston Borough Council,Vehicle Holding Account,2206,Fuel Transport,2201,FUEL TO 19/12,31/12/2021,72856,2976.03,Revenue,Fuel Card Services,
32UB,Boston Borough Council,Nndr Collection Account,5101,Business Rates Refunds,7160,NNDR REFUND BY HSBCNET PP - PILGRIM'S PRIDE,24/12/2021,72865,99452.77,Precept,Pilgrim's Pride,
32UB,Boston Borough Council,Bereavement,2401,Gas,2022,GAS - CREM - OCT 2021,24/12/2021,72867,1376.99,Revenue,ESPO,
32UB,Boston Borough Council,Municipal Buildings,2404,Gas,2022,GAS - MUNICIPAL BUILDINGS - OCT 2021,24/12/2021,72867,468.58,Revenue,ESPO,
32UB,Boston Borough Council,"Arts, Heritage & Tourism",3407,Gas,2022,GAS - GUILDHALL - OCT 2021,24/12/2021,72867,414.92,Revenue,ESPO,
32UB,Boston Borough Council,Leisure Pool Services,3434,Gas,2022,GAS - GMLC - OCT 2021,24/12/2021,72867,4116.48,Revenue,ESPO,
32UB,Boston Borough Council,Vehicle Holding Account,2206,Fuel Transport,2201,FUEL TO 26/12,31/12/2021,72884,409.3,Revenue,Fuel Card Services,
32UB,Boston Borough Council,Vehicle Holding Account,2206,Fuel Transport,2201,FUEL TO 26/12 VU62 HVH,31/12/2021,72886,261.92,Revenue,Fuel Card Services,
32UB,Boston Borough Council,Vehicle Holding Account,2206,Fuel Transport,2201,FUEL TO 26/12,31/12/2021,72886,3281.69,Revenue,Fuel Card Services,
32UB,Boston Borough Council,Vehicle Holding Account,2206,Fuel Transport,2201,FUEL TO 31/12,31/12/2021,72975,600.95,Revenue,Fuel Card Services,
32UB,Boston Borough Council,Vehicle Holding Account,2206,Fuel Transport,2201,FUEL TO 31/12,31/12/2021,72976,2870.09,Revenue,Fuel Card Services,
32UB,Boston Borough Council,Credit Control Unit,1013,Recovery Costs,4617,HM COURTS & TRIBUNALS SERVICE DD - CTAX LIABILITY ORDERS,16/12/2021,72983,533,Revenue,HM Courts & Tribunals Service,
32UB,Boston Borough Council,Computer Costs,1503,Software Licences,3407,SOFTWARE,16/12/2021,73054,428.61,Revenue,,
32UB,Boston Borough Council,Vehicle Holding Account,2206,Fuel Transport,2201,DIESEL,16/12/2021,73054,266.68,Revenue,,
32UB,Boston Borough Council,Vehicle Holding Account,2206,Fuel Transport,2201,DIESEL VX18 KFG,16/12/2021,73054,400.26,Revenue,,
32UB,Boston Borough Council,Vehicle Holding Account,2206,Fuel Transport,2201,FUEL,16/12/2021,73054,418.97,Revenue,,
32UB,Boston Borough Council,Vehicle Holding Account,2206,Fuel Transport,2201,REFUSE FUEL,16/12/2021,73054,678.81,Revenue,,
32UB,Boston Borough Council,Depot,2405,Equipment Purchase,3001,2 NOTICE BOARDS,16/12/2021,73054,315,Revenue,,
32UB,Boston Borough Council,Cctv,3206,Licences,3850,RENEWAL OF A CCTV SIA BADGE,16/12/2021,73054,316.66,Revenue,,
32UB,Boston Borough Council,Bed & Breakfast,3222,Bed And Breakfast Accom Fees,3306,EMERGENCY ACCOMMODATION,16/12/2021,73054,332.5,Revenue,,
32UB,Boston Borough Council,Refuse Collection,3234,Printing And Stationery,3201,TONER CARTRIDGE,16/12/2021,73054,307.89,Revenue,,
32UB,Boston Borough Council,Refuse Collection,3234,Provisions / Purchases,3008,LITTER PICKERS,16/12/2021,73054,370.77,Revenue,,
32UB,Boston Borough Council,Street Cleansing Service,3235,Provisions / Purchases,3008,LITTER PICKERS,16/12/2021,73054,843.43,Revenue,,
32UB,Boston Borough Council,Leisure Pool Services,3434,Printing And Stationery,3201,PRINTER INK/STATIONARY,16/12/2021,73054,280.43,Revenue,,
32UB,Boston Borough Council,Community Testing Centre,3516,Equipment Purchase,3001,VEHICLE HIRE,16/12/2021,73054,466.67,Revenue,,
32UB,Boston Borough Council,Grounds Maintenance,4401,Equipment Purchase,3001,PARKS SHEDS,16/12/2021,73054,333.33,Revenue,,
32UB,Boston Borough Council,Grounds Maintenance,4401,Equipment Purchase,3001,"PARKS LOPPERS, RAKES",16/12/2021,73054,733.68,Revenue,,
